{"text_format":"1","workbook":"xlsx","n_sheets":5,"sheets":["表紙","アンケートフォーム","集計表（単一回答）","集計（複数回答）","data set"],"not_rendered":{"charts":0,"images":0,"macros":1,"external_links":0,"defined_names":2,"comments":0,"pivot_tables":0},"unopened":[],"bounds":{"document_bytes":16777216,"sheet_cells":100000,"rows_first":2000,"rows_last":500,"rows_between":2000,"halvings":0,"cell_chars":16384,"cell_head_chars":4096},"cells_cut":0,"cells_raw":0,"read":"whole","date_system":"1900"}

{"sheet":"表紙","index":0,"n_rows":42,"n_cols":8,"rows_kept":42,"cut":false,"hidden":false,"merged":[[1,0,4,7],[41,0,42,7],[7,1,16,6],[27,1,32,6],[21,0,22,7],[23,0,24,7]]}
[null,null,null,null,null,null,"所要時間：","約10分(全18問)"]
["京都市内の事業者を対象とした\n太陽光発電設備（0円ソーラー）導入に関する\nアンケート調査"]
[]
[]
[]
[]
["目的："]
[null,"　太陽光発電設備のコスト低減を背景に、電力供給事業者が初期費用を負担して建物に太陽光発電設備を設置し、発電した電力を建物所有者が自家消費する「0円ソーラー」と呼ばれるサービスが近年広がっています。「０円ソーラー」を導入する建物所有者のメリットとして、建物所有者が消費する再エネ電気には「再生可能エネルギー発電促進賦課金（再エネ賦課金）」がかからないことや、一定期間経過後（概ね10年後）、太陽光発電設備が建物所有者に無償譲渡されることなどがあげられております。\n\n　この度、京都市では、京都市内で最もポテンシャルが高い再生可能エネルギー（以下、「再エネ」）源である太陽光を更に活用するため、この新たなビジネスモデル「0円ソーラー」を活用した太陽発電設備の導入支援策を検討しており、本調査はそのための基礎情報を集めることを目的としたものです。"]
[]
[]
[]
[]
[]
[]
[]
[]
[]
[]
["　ご記入いただく方について："]
["　　1）事務所や事業所単位でのご回答をお願いします。"]
["　　2）複数の工場や店舗をお持ちの場合は、各施設に関し、ご回答をお願いします。"]
["　　3）協会等、複数の事業者会員などの組織の方は、お手数ですが、京都市内の会員事業者様へ\n　 　　 本アンケートを送付いただきますようお願いいたします。"]
[]
["　　※ 商工会議所や関連分野の協会・団体に複数所属しております事業者様については、\n　　　複数のご案内が送付されてくる場合がございますが、1回のみのご回答で結構です。"]
[]
[]
["　個人情報の取扱いについて："]
[null,"　記載いただいた情報は、今後の「0円ソーラー」に係るプラットフォームの設置や設備導入支援、セミナーの案内などに利用させていただきます。ご本人の同意がない限り、第三者に個人情報を提供することはございません。取得した個人情報は管理責任者が適切に取り扱い、紛失や漏洩などが発生しないよう積極的な安全対策を行います。\nなお、今回お答えいただいた内容を基に、関連するセミナー等をご案内する場合がございます。併せてご了承ください。"]
[]
[]
[]
[]
[]
[]
["　アンケートに対するお問い合わせ先："]
[null,"公益財団法人 京都市環境保全活動推進協会　（担当：相澤、井上）"]
[null,"  電話：075-647-3535",null,null,"  FAX：075-647-3536"]
[null,"Email: agenda@ma21f.jp"]
[]
[]
[]
["※本調査は、京都市内の再生可能エネルギーの飛躍的な普及拡大を図ることを目的とした「太陽光発電プラットフォーム事業（京都市環境政策局地球温暖化対策室 主管）」の一環として実施するものです。"]

{"sheet":"アンケートフォーム","index":1,"n_rows":63,"n_cols":6,"rows_kept":63,"cut":false,"hidden":false,"merged":[[9,0,9,5],[58,0,58,1],[58,2,58,5],[32,4,32,5],[37,4,37,5],[41,4,41,5],[45,4,45,5],[51,4,51,5],[54,4,54,5],[56,0,56,1],[56,2,56,5],[57,0,57,1],[57,2,57,5]]}
[]
[null,"のセルはドロップダウンリストになっておりますので、対象セルを選択し「▼」をクリックいただくか、「Alt」+「↓」キーで展開し、ご回答ください。"]
[]
["１. 事業者情報について、ご回答をお願います。　"]
["Q1.","業種"]
["Q2.","創業年"]
["Q3.","従業員規模"]
["Q4.","環境・CSR担当部門・部署/同分野に係る担当者の配置"]
[]
["２．施設に関する情報について、ご回答をお願います。"]
["Q5.","建物の階数"]
["Q6.","屋根材の種類（ご存知の場合）"]
["Q7.","推計屋根面積(m2)（ご存知の場合）",null,null,null,"m2"]
["Q8.","建物の築年数"]
["Q9.","建物・用地の所有形態"]
["Q9-1.","[賃貸・借地」と回答された方","契約年数：",null,"契約終了年："]
[]
["３．現在の電力契約について、わかる範囲で結構ですのでご回答をお願います。"]
["Q10.","契約電力の電圧区分"]
["Q11.","年間電力消費量",null,null,null,"kWh"]
["Q12.","電気料金単価",null,null,null,"円/kWh"]
["Q13.","RE100やRE Actionをはじめ、事業に使用する電力を全て再エネでまかなうことに関心がありますか。"]
[]
[]
["4．太陽光発電設備の導入についてご回答願います。 "]
["Q14.","太陽光発電設備の導入に関心はありますか。"]
["Q14-1.","「すでに導入済み」と回答した方のみ回答ください。"]
[null,"導入した太陽光発電設備の設置費用についてご回答ください。"]
["Q14-2.","「すでに導入済み」と回答した方のみ回答ください。"]
[null,"太陽光発電設備の導入量をどのように決定しましたか。"]
[]
[]
[null,null,null,"その他："]
["Q14-3.","「すでに導入済み」と回答した方のみ回答ください。"]
[null,"導入した理由について、該当するものをお選びください（複数回答可）。"]
[]
[]
[null,null,null,"その他："]
["Q15.","太陽光発電設備の検討・導入に際し課題となる（なった）事柄について、該当するものをお選びください（複数回答可）。"]
[]
[]
[null,null,null,"その他："]
["Ｑ16.","太陽光発電設備の検討・導入に際して、必要な情報は何ですか（複数回答可）。"]
[]
[]
[null,null,null,"その他："]
["Ｑ17.","「0円ソーラー（「ソーラーPPA」、「初期投資不要ソーラーシステム」などとも呼ばれている）」という太陽光発電設備の導入方法をご存知ですか。"]
[]
["Q18.","「0円ソーラー」の導入に関心や興味はありますか。"]
["Ｑ18-1.","「関心・興味がある」と回答した方"]
[null,"導入を検討するにあたり、最も必要と考える支援は何ですか。"]
[null,null,null,"その他（具体的に）："]
["Ｑ18-2.","「関心がない」と回答した方"]
[null,"理由について、該当するものをお選びください。"]
[null,null,null,"その他（具体的に）："]
[]
["住所："]
["ご担当者氏名："]
["電話番号："]
[null,"メール送付先：","agenda@ma21f.jp","（7月10日（金）正午までにご返信いただきますようお願い申し上げます）"]
[null,"担当：","相澤、井上"]
[]
["ご多忙のところ、アンケートへのご協力ありがとうございました。"]

{"sheet":"集計表（単一回答）","index":2,"n_rows":4,"n_cols":30,"rows_kept":4,"cut":false,"hidden":true,"merged":[]}
[null,null,null,null,null,"Q1.","Q2.","Q3.","Q4.","Q5.","Q6.","Q7.","Q8.","Q9.","Q9-1.",null,"Q10.","Q11.","Q12.","Q13.","Q14.","Q14-1.","Q14-2.","Q14-3.","Q15.","Ｑ16.","Ｑ17.","Q18.","Ｑ18-1.","Ｑ18-2."]
["No.","住所","ご担当者氏名","メールアドレス","電話番号","業種","創業年","従業員規模","環境・CSR担当部門・部署/同分野に係る担当者の配置","建物の階数","屋根材の種類（ご存知の場合）","推計屋根面積(m2)（ご存知の場合）","建物の築年数","建物・用地の所有形態","[賃貸」と回答された方",null,"契約電力の電圧区分","年間電力消費量","電気料金単価","RE100やRE Actionをはじめ、事業に使用する電力を全て再エネでまかなうことに関心がありますか。","太陽光発電設備の導入に関心はありますか。","導入した太陽光発電設備の設置費用についてご回答ください。","太陽光発電設備の導入量をどのように決定しましたか。","導入した理由について、該当するものをお選びください（複数回答可）。","太陽光発電設備の検討・導入に際し課題となる（なった）事柄について、該当するもの全てをお選びください。","太陽光発電設備の検討・導入に際して、必要な情報は何ですか（複数回答可）。","「0円ソーラー」という太陽光発電設備の導入方法をご存知ですか。","「0円ソーラー」を導入に関心や興味はありますか。","導入を検討するにあたり必要な支援は何ですか。","「関心がない」と回答した方"]
[null,{"$f":"+アンケートフォーム!C57","v":0},{"$f":"+アンケートフォーム!C58","v":0},{"$f":"+アンケートフォーム!#REF!","v":{"$error":"#REF!"}},{"$f":"+アンケートフォーム!C59","v":0},{"$f":"+アンケートフォーム!E5","v":0},{"$f":"+アンケートフォーム!E6","v":0},{"$f":"アンケートフォーム!E7","v":0},3,{"$f":"アンケートフォーム!E11","v":0},{"$f":"アンケートフォーム!E12","v":0},{"$f":"アンケートフォーム!E13","v":0},{"$f":"アンケートフォーム!E14","v":0},4,{"$f":"+アンケートフォーム!D16","v":0},{"$f":"+アンケートフォーム!F16","v":0},4,{"$f":"+アンケートフォーム!$E$20","v":0},{"$f":"+アンケートフォーム!$E$21","v":0},0,4,{"$f":"+アンケートフォーム!E28","v":0},7,null,null,null,0,0,{"$f":"IF(AC4=\"製品や技術情報\",1,IF(AC4=\"実施に必要な期間・手続きに関する情報\",2,IF(AC4=\"法令等に関する情報\",3,IF(AC4=\"運転・メンテナンスに関する情報,4,if(ac4=\"\"設置・運用に関する情報\",5,6))))","v":6},{"$f":"IF(AD4=\"情報へのアクセス\",1,IF(AD4=\"人手不足\",2,IF(AD4=\"経営上のメリット不足\",3,4)))","v":4}]
[null,null,null,null,null,null,null,null,{"$f":"IF(I3=3,\"未選択\",IF(I3=2,\"配置していない\",\"配置している\"))","v":"未選択"},null,null,null,null,{"$f":"IF(N3=4,\"未選択\",IF(N3=3,\"その他\",IF(N3=2,\"賃貸・借地\",\"自己所有\")))","v":"未選択"},"契約年数","契約終了年",{"$f":"IF(Q3=4,\"未選択\",IF(Q3=3,\"低圧\",IF(Q3=2,\"高圧\",\"特別高圧\")))","v":"未選択"},null,null,{"$f":"IF(T3=3,\"未選択\",IF(T3=2,\"関心はない\",\"関心がある\"))","v":"関心がある"},{"$f":"IF(U3=4,\"未選択\",IF(U3=3,\"関心はない\",IF(U3=2,\"関心がある\",\"既に導入済み\")))","v":"未選択"},null,{"$f":"IF(W3=6,アンケートフォーム!E33,IF(W3=5,\"設置費用\",IF(W3=4,\"設置可能面積\",IF(W3=3,\"環境配慮のため最大限導入\",IF(W3=2,\"電力事業者の提案\",IF(W3=1,\"建築事業者（建築士等）の提案\"))))))","v":false},null,null,null,{"$f":"IF(AA3=1,\"知っている\",IF(AA3=3,\"未選択\",知らない))","v":{"$error":"#NAME?"}},{"$f":"IF(AB3=1,\"興味・関心がある\",IF(AB3=3,\"未選択\",\"興味・関心はない\"))","v":"興味・関心はない"},{"$f":"IF(アンケートフォーム!E51=\"\",アンケートフォーム!E52,アンケートフォーム!E51)","v":0},{"$f":"IF(アンケートフォーム!E54=\"\",アンケートフォーム!E55,アンケートフォーム!E54)","v":0}]

{"sheet":"集計（複数回答）","index":3,"n_rows":10,"n_cols":12,"rows_kept":10,"cut":false,"hidden":true,"merged":[[1,1,3,1],[1,0,3,0],[4,0,6,0],[4,1,6,1],[7,0,9,0],[7,1,9,1]]}
["Q No.","Q","A"]
["Q14-3.","導入した理由について、該当するものをお選びください（複数回答可）。","防災力強化（BCP等への対応）","ESG投資・SDGsへの対応","CO2排出量削減（規定や条例等の遵守）","取引先やテナントの意向","その他"]
[]
[null,null,false,false,false,false,{"$f":"+アンケートフォーム!E38","v":0}]
["Q15.","太陽光発電設備の検討・導入に際し課題となる（なった）事柄について、該当するもの全てをお選びください。","用地・立地","甲にゅや契約等手続き","廃棄方法","設備や施工情報へのアクセス","予算","管理等の対応に係る人材確保","設備設置箇所の強度・耐荷重量","景観等の条例や規制","特になし","その他"]
[]
[null,null,false,false,false,false,false,false,false,false,false,{"$f":"アンケートフォーム!E42","v":0}]
["Ｑ16.","太陽光発電設備の検討・導入に際して、必要な情報は何ですか（複数回答可）。","製品や技術情報","設置・運用費用に関する情報","補助・助成金に関する情報","関連する法令等の情報","運転・メンテナンスに関する情報","実施に必要な期間や手続きに関する情報"]
[]
[null,null,false,false,false,false,false,false]

{"sheet":"data set","index":4,"n_rows":25,"n_cols":25,"rows_kept":25,"cut":false,"hidden":true,"merged":[]}
["複数回答",null,null,null,null,null,null,null,null,null,null,null,null,null,null,null,null,"〇","〇","〇","〇",null,null,"〇","〇"]
["記述",null,null,null,null,null,null,"〇",null,null,"〇",null,"〇","〇",null,null,"〇","〇","〇","〇","〇",null,null,"〇","〇"]
["NO.","Q1.","Q2.","Q3.","Q4.","Q5.","Q6.","Q7.","Q8.","Q9.","Q9-1.","Q10.","Q11.","Q12.","Q13.","Q13."]
["分類","事業者情報","事業者情報","事業者情報","事業者情報","施設情報","施設情報","施設情報","施設情報","施設情報","施設情報","電力契約","電力契約","電力契約","電力契約","太陽光発電設備の導入","太陽光発電設備の導入","太陽光発電設備の導入","太陽光発電設備の導入","太陽光発電設備の導入","太陽光発電設備の導入","太陽光発電設備の導入","太陽光発電設備の導入","太陽光発電設備の導入","太陽光発電設備の導入"]
["設問","業種について、該当するものをお選びください。","創業年について、当てはまるものをお選びください。","従業員の規模について、当てはまるものをお選びください。","環境・CSRを担当する部門や部署、もしくは同分野に係る担当者を配置していますか。","建物の階数について、当てはまるものをお選びください。","屋根材の種類について、該当するものをお選びください（ご存知の場合）。","推計屋根面積(m2)をご記入ください（ご存知の場合）。","建物の築年数について、該当するものをお選びください。","建物や用地の所有形態について、下記から該当するものをお選びください。","（「賃貸」と回答された方）\n契約年数と残存期間をご記入下さい。","契約している電圧の区分について、教えてください。","年間電力消費量（kWh)をご記入ください。","契約している電気料金単価（円/kWh)をご記入ください。(回答可能な範囲で結構です）","RE100,Re Actionをはじめ、事業に使用する電力をすべて再エネでまかなうことに関心がありますか。","太陽光発電設備の導入に関心はありますか。","（「すでに導入済み」と回答した方）\n導入した太陽光発電設備の設置費用を教えてください。（回答が可能な範囲で結構です）","（「すでに導入済み」と回答した方）選択者対象）\n太陽光発電設備の導入量をどのように決定しましたか。","（「関心がある」と回答した方）（複数回答可）\n導入した理由について、該当するものを全てお選びください。","（複数回答可）\n太陽光発電設備の検討・導入に際し課題となる（なった）事柄について、該当するもの全てをお選びください。","（複数回答可）太陽光発電設備の検討・導入に際して、必要と考える情報は何ですか。お手はまるものを全てお選びください。","「0円ソーラー」という太陽光発電設備の導入方法をご存知ですか。","「0円ソーラー」を導入に関心や興味はありますか。","（「関心がある」と回答した方）\n導入を検討するにあたり、必要と考える支援は何ですか。最も必要と考えるものをお選びください。","（「関心がない」と回答した方）\n理由について、教えてください。"]
[null,"農業,林業","1年未満","10人未満","はい","1階","瓦",null,"10年未満","自己所有",null,"特別高圧",null,null,null,"既に導入済み","100万円未満","建築事業者（建築士等）の提案","ESG投資・SDGsへの対応","用地・立地","製品や技術情報","知っている","関心がある","製品等の情報提供","情報へのアクセス"]
["回答","漁業","1年～3年未満","10人～50人未満","いいえ","2～3階未満","プレスセメント瓦",null,"10年～20年未満","賃貸",null,"高圧",null,null,null,"関心がある","100万円～500万円未満","電力事業者の提案","CO2排出量削減（基準・既定の遵守）","予算","実施に必要な期間・手続きに関する情報","知らない","関心はない","助成金等の財政的支援","人手不足"]
["回答","鉱業,採石業,砂利採取業","3年～5年未満","50人～200人未満","検討中","3～5階未満","住宅用平型スレート",null,"20年～30年未満",null,null,"低圧",null,null,null,"関心はない","500万円～1000万円未満","環境配慮のため最大限導入","防災力強化","管理等の対応係る人材確保","法令等に関する情報",null,null,"契約等の作業補助","経営上のメリット不足"]
["回答","建設業","5年～10年未満","200人～1000人未満",null,"5～10階未満","住宅用波型スレート",null,"30年以上",null,null,"その他",null,null,null,null,"1000万円～3000万円未満","設置可能性面積","取引先やテナントの意向","設備設置箇所の強度・耐荷重量","運転・メンテナンスに関する情報"]
["回答","製造業","10年以上","1000人以上",null,"10階以上","シングル材",null,null,null,null,null,null,null,null,null,"3000万円～5000万円未満","設置費用","その他(自由回答）","景観等の条例","設置・運用費用に関する情報"]
["回答","電気・ガス・熱供給・水道業",null,null,null,null,"金属葺き(縦・横）",null,null,null,null,null,null,null,null,null,"5000万円以上","その他(自由回答）",null,"廃棄方法","補助・助成制度に関する情報"]
["回答","情報通信業",null,null,null,null,"金属瓦棒（心木あり/なし）",null,null,null,null,null,null,null,null,null,null,null,null,"特になし","その他（具体的に: ）"]
["回答","運輸業,郵便業",null,null,null,null,"金属折板",null,null,null,null,null,null,null,null,null,null,null,null,"その他（自由回答）"]
["回答","卸売業・小売業",null,null,null,null,"波板葺き"]
["回答","金融業,保険業",null,null,null,null,"その他（屋上等）"]
["回答","不動産業,物品賃貸業"]
["回答","学術研究,専門・技術サービス業"]
["回答","宿泊業,飲食店"]
["回答","生活関連サービス業,娯楽業"]
["回答","教育学習支援業"]
["回答","医療,福祉"]
["回答","複合サービス事業"]
["回答","サービス業（他に分類されないもの）"]
["回答","公務"]
["回答","団体・協会"]